bitfinex/quotes_ETHUSD_20241009
["timestamp","ask_amount","ask_price","bid_price","bid_amount"]
[1728435003576,0.7639,2438.0,2437.4,3.0]
[1728435003743,0.7639,2438.0,2437.6,4.10225]
[1728435005076,0.7639,2438.0,2437.6,4.10231]
[1728435005289,0.8277,2438.3,2437.8,4.10204]
[1728435005430,4.10142,2438.2,2437.6,4.10226]
[1728435005632,0.8114,2438.1,2437.8,4.10204]
[1728435005828,0.8114,2438.1,2438.0,4.10172]
[1728435006027,0.8114,2438.1,2437.8,4.10204]
[1728435006028,4.10106,2438.4,2437.8,4.10204]
[1728435006531,3.78443297,2438.4,2437.8,4.10194]
[1728435006732,3.78443297,2438.4,2438.0,4.10171]
[1728435006968,3.78443297,2438.4,2437.8,4.590864]
[1728435007169,3.78443297,2438.4,2437.9,4.10183]
[1728435007841,7.88548297,2438.4,2437.8,4.590864]
[1728435008171,7.88548297,2438.4,2437.8,8.692824]
[1728435008374,7.88548297,2438.4,2437.9,4.10186]
[1728435008751,7.88548297,2438.4,2437.8,4.590864]
[1728435009335,0.8222,2438.3,2437.8,8.692794]
[1728435010275,0.8222,2438.3,2437.9,4.10184]
[1728435010488,0.8222,2438.3,2437.9,0.8692694]
[1728435010771,0.8222,2438.3,2437.8,4.590854]
[1728435010980,0.8222,2438.3,2437.8,8.692814]
[1728435011147,0.8222,2438.3,2437.8,4.590874]
[1728435011568,3.78443297,2438.6,2438.1,4.10154]
[1728435011754,0.7705,2438.6,2438.1,8.20297]
[1728435012079,0.7705,2438.6,2438.1,9.104347]
[1728435012279,0.7705,2438.6,2438.1,5.002897]
[1728435012642,4.55493297,2438.6,2438.1,5.002897]
[1728435012872,3.78443297,2438.4,2437.9,4.10179]
[1728435013060,7.42,2439.0,2437.6,4.91399]
[1728435013061,4.10158,2438.1,2437.6,4.91399]
[1728435013274,4.54213297,2438.2,2437.7,4.10219]
[1728435014175,8.64367297,2438.2,2437.6,0.8116]
[1728435014382,5.81662527,2438.2,2437.5,4.10245]
[1728435014541,4.54213297,2438.2,2437.5,4.10245]
[1728435014739,3.8238,2438.1,2437.3,2.51740733]
[1728435014940,3.78443297,2437.7,2437.1,4.10313]
[1728435015241,0.8238,2437.4,2436.9,4.10341]
[1728435015470,4.92654,2437.4,2436.9,4.10341]
[1728435015638,4.92654,2437.4,2436.6,1.71620733]
[1728435015639,4.10294,2437.3,2436.6,5.82022733]
[1728435015841,4.10294,2437.3,2436.5,6.25295729]
[1728435015842,8.69639297,2437.1,2436.5,4.10416]
[1728435016152,3.78443297,2436.7,2436.3,4.10451]
[1728435016585,3.78443297,2436.7,2436.1,4.10476]
[1728435016737,3.78443297,2436.7,2436.2,0.491496]
[1728435017387,0.8087,2436.8,2436.4,4.1044]
[1728435017941,0.8087,2436.8,2436.3,4.10445]
[1728435018499,3.78443297,2436.7,2436.1,4.10485]
[1728435018640,3.78443297,2436.7,2435.7,4.10555]
[1728435018641,0.8087,2436.6,2435.7,0.8102]
[1728435018845,0.8087,2436.6,2436.3,8.20893]
[1728435019067,0.8087,2436.6,2436.3,9.029823]
[1728435019389,0.8087,2436.6,2436.3,4.925353]
[1728435019549,0.8087,2436.6,2436.1,4.10491]
[1728435019756,0.8087,2436.6,2436.1,4.10482]
[1728435019956,0.8087,2436.6,2436.3,4.10457]
[1728435020749,0.8087,2436.6,2436.3,8.20905]
[1728435020989,0.8087,2436.6,2436.3,4.10448]
[1728435022365,5.05244627,2436.6,2435.9,4.10516]
[1728435022682,0.7826,2436.1,2435.5,4.10583]
[1728435022889,3.78443297,2435.8,2435.5,4.10583]
[1728435023051,0.7826,2435.7,2435.5,4.10583]
[1728435023599,0.7826,2435.7,2435.3,4.10616]
[1728435023744,3.78443297,2435.6,2435.1,4.10654]
[1728435024091,3.78443297,2435.6,2435.3,4.10626]
[1728435025202,3.78443297,2435.6,2435.1,4.517194]
[1728435025404,0.7826,2435.7,2435.1,4.517194]
[1728435025704,3.78443297,2435.4,2434.9,4.10692]
[1728435026523,3.78443297,2435.4,2434.7,8.21437]
[1728435026810,7.89063297,2435.4,2434.7,4.10715]
[1728435027012,7.89063297,2435.4,2434.9,4.10691]
[1728435027013,3.78443297,2435.4,2434.9,4.10691]
[1728435027809,3.78443297,2435.4,2434.7,4.10714]
[1728435027969,3.78443297,2435.4,2434.9,4.10694]
[1728435028168,0.8321,2435.5,2434.9,4.10694]
[1728435028561,0.8321,2435.5,2435.2,4.10632]
[1728435032202,0.8321,2435.5,2435.3,4.10626]
[1728435032414,0.8321,2435.5,2435.2,4.10632]
[1728435034323,0.79,2435.3,2434.6,4.75084255]
[1728435034543,3.78443297,2434.9,2434.4,4.10767]
[1728435034829,3.78443297,2434.9,2434.5,4.1076]
[1728435035000,3.78443297,2434.9,2434.4,4.10767]
[1728435035203,7.89139297,2434.9,2434.2,4.1081]
[1728435035420,4.10597,2435.5,2433.8,4.1087]
[1728435035421,0.8241,2434.6,2433.8,4.1087]
[1728435035595,0.8241,2434.2,2433.7,4.75262689]
[1728435035804,0.8241,2434.2,2433.7,0.64370689]
[1728435036135,0.8241,2434.2,2433.7,4.10896]
[1728435036328,3.78443297,2434.1,2433.7,4.10896]
[1728435036483,3.78443297,2434.1,2433.7,4.10893]
[1728435036686,0.8241,2434.2,2433.5,4.10928]
[1728435036915,0.8241,2434.2,2434.0,4.10835]
[1728435037286,0.8241,2434.2,2433.8,4.10871]
[1728435037614,0.8241,2434.2,2433.9,4.10852]
[1728435037927,0.8241,2434.2,2433.8,4.10869]
[1728435038139,0.8241,2434.2,2434.1,4.10829]
[1728435038346,0.8096,2434.6,2434.4,4.10778]
[1728435039883,0.8096,2434.6,2434.4,8.21545]
[1728435040325,0.8096,2434.6,2434.4,4.10767]
[1728435040933,0.8096,2434.6,2434.5,4.10761]
[1728435041100,0.8096,2434.6,2434.4,4.10767]
[1728435042338,4.59403297,2434.6,2434.0,4.10842]
[1728435042639,3.2048553,2435.3,2433.6,0.8223]
[1728435042640,4.59413297,2434.4,2433.8,4.10871]
[1728435042805,4.59413297,2434.4,2433.9,4.10857]
[1728435043131,0.8097,2434.4,2433.9,4.10857]
[1728435043432,0.8097,2434.4,2433.8,4.10871]
[1728435043725,0.8097,2434.4,2434.0,4.10844]
[1728435043974,0.8097,2434.4,2434.0,4.930055]
[1728435044143,0.8097,2434.4,2433.9,4.10862]
[1728435044289,0.8097,2434.4,2434.0,4.10845]
[1728435045594,0.8097,2434.4,2433.8,4.10865]
[1728435045799,3.78443297,2434.4,2433.8,4.10865]
[1728435046095,4.92956,2434.3,2433.6,4.10903]
[1728435046304,0.8215,2434.1,2433.6,4.10903]
[1728435046540,0.8215,2434.1,2433.8,4.10878]
[1728435046720,0.8215,2434.1,2433.6,4.10903]
[1728435046927,0.8215,2434.1,2433.6,8.21807]
[1728435047094,0.8215,2434.1,2433.6,5.230837]
[1728435047301,0.8215,2434.1,2433.7,4.10894]
[1728435047521,0.8215,2434.1,2433.9,4.10852]
[1728435049360,7.62227634,2434.8,2434.0,4.10846]
[1728435049361,11.20443297,2434.8,2434.0,4.10846]
[1728435049517,7.8713,2434.7,2434.1,0.410846]
[1728435049851,7.8713,2434.7,2434.2,4.10809]
[1728435049852,3.7639,2434.7,2434.2,4.10809]
[1728435050007,3.7639,2434.7,2434.3,4.1079]
[1728435050443,3.7639,2434.7,2434.2,4.10809]
[1728435050648,9.0368163,2434.7,2434.1,4.10816]
[1728435051306,13.1442063,2434.7,2434.1,4.10816]
[1728435051505,0.761,2434.5,2434.0,4.10834]
[1728435051753,0.761,2434.5,2434.2,4.10809]
[1728435052511,0.761,2434.5,2434.3,4.10794]
[1728435052732,0.761,2434.5,2434.4,4.10778]
[1728435053453,0.761,2434.5,2434.3,4.10795]
[1728435055217,0.761,2434.5,2434.2,8.626919]
[1728435055416,0.761,2434.5,2434.2,4.518829]
[1728435056020,0.761,2434.5,2434.2,4.518799]
[1728435056244,0.761,2434.5,2434.3,4.10793]
[1728435056966,0.761,2434.5,2434.2,4.518799]
[1728435058846,0.761,2434.5,2434.3,4.10794]
[1728435059223,0.761,2434.5,2434.4,4.10778]
[1728435059860,0.761,2434.5,2434.2,4.518789]
[1728435060061,0.761,2434.5,2434.3,4.10793]
[1728435060846,0.761,2434.5,2434.2,4.518789]
[1728435061185,4.10703,2434.9,2434.3,0.4518789]
[1728435061186,0.7765,2434.9,2434.3,0.4518789]
[1728435061476,0.7765,2435.1,2434.9,4.10691]
[1728435061650,0.7765,2435.1,2434.7,4.10727]
[1728435061651,0.7765,2435.1,2434.7,4.10716]
[1728435061827,0.7765,2435.1,2434.7,4.928629]
[1728435062266,0.7765,2435.1,2434.8,4.107]
[1728435062430,0.7765,2435.1,2434.5,4.10749]
[1728435062785,0.7765,2435.1,2434.7,4.10728]
[1728435063371,0.7765,2435.1,2434.8,4.10708]
[1728435063570,0.7765,2435.1,2435.0,4.10677]
[1728435063879,4.10586,2435.6,2434.8,0.821436]
[1728435063880,4.8591,2435.4,2434.8,4.928436]
[1728435064804,0.7529,2435.4,2435.1,4.10648]
[1728435064961,0.8096,2435.7,2435.1,0.410648]
[1728435065149,0.8096,2435.7,2435.2,0.8292]
[1728435065461,0.8096,2435.7,2435.1,4.517108]
[1728435065661,0.8096,2435.7,2435.2,4.6409708]
[1728435065979,0.8096,2435.7,2435.3,4.10626]
[1728435066382,4.10509,2436.0,2435.3,4.10618]
[1728435066688,0.7938,2435.8,2435.3,4.10618]
[1728435066899,0.7938,2435.5,2434.7,4.10718]
[1728435067120,4.10629,2435.3,2434.7,4.99951491]
[1728435067282,4.10629,2435.3,2434.5,2.48510733]
[1728435067283,8.68718297,2435.2,2434.5,4.1075]
[1728435067445,4.58063297,2435.2,2434.3,1.71620733]
[1728435067784,0.7962,2435.2,2434.7,4.10717]
[1728435067984,0.7962,2435.2,2434.7,8.21434]
[1728435068157,0.7962,2435.2,2434.7,4.10717]
[1728435068366,4.90266,2435.2,2434.5,4.10748]
[1728435068570,4.90266,2435.2,2434.5,4.7189129]
[1728435068761,4.90266,2435.2,2434.7,4.10725]
[1728435068947,0.7962,2435.2,2434.8,4.1071]
[1728435069158,3.7885,2435.5,2435.1,4.1066]
[1728435069358,3.7885,2435.5,2435.1,4.10648]
[1728435069359,1.16735,2435.5,2435.1,4.10648]
[1728435069563,0.7885,2435.5,2435.1,4.10648]
[1728435069977,3.7885,2435.5,2434.9,4.10685]
[1728435070181,3.7885,2435.5,2434.9,4.10683]
[1728435070502,0.789429,2435.4,2435.0,4.10676]
[1728435070787,3.7885,2435.5,2435.0,4.10676]
[1728435071369,0.7885,2435.5,2435.2,4.10639]
[1728435071987,0.7885,2435.5,2435.2,4.10633]
[1728435073462,0.7743,2435.8,2435.4,4.1061]
[1728435073866,0.7743,2435.8,2435.6,4.10576]
[1728435074512,0.8145,2436.1,2435.8,4.10539]
[1728435074791,0.8145,2436.1,2435.4,4.10597]
[1728435074792,4.91953,2436.1,2435.4,4.10597]
[1728435075089,0.8145,2436.1,2435.6,4.10569]
[1728435075290,11.52467,2436.3,2436.0,4.10507]
[1728435075291,7.42,2436.3,2436.0,4.10507]
[1728435075492,0.7634,2436.4,2436.0,4.10507]
[1728435075687,4.10458,2436.3,2435.6,4.10565]
[1728435075990,4.10477,2436.2,2435.6,4.10564]
[1728435076199,0.7646,2436.1,2435.6,4.10564]
[1728435076397,4.86952,2436.1,2435.6,4.10564]
[1728435076949,0.7646,2436.1,2435.6,4.10564]
[1728435077274,0.7646,2436.1,2435.8,4.1053]
[1728435077595,0.7646,2436.1,2435.6,8.621864]
[1728435078181,0.7646,2436.1,2435.6,4.516214]
[1728435078815,4.86952,2436.1,2435.4,4.10598]
[1728435079878,4.10519,2436.0,2435.4,8.21198]
[1728435080284,4.10519,2436.0,2435.4,4.10598]
[1728435080469,5.3811043,2436.0,2435.4,4.10598]
[1728435080676,4.10526,2435.9,2435.4,4.10598]
[1728435080874,0.8245,2435.6,2435.0,4.10662]
[1728435081093,0.8245,2435.6,2434.8,0.7637]
[1728435081094,4.1061,2435.4,2434.8,4.8707]
[1728435081384,4.1061,2435.4,2434.8,9.111806]
[1728435082001,4.1061,2435.4,2434.9,4.10694]
[1728435082204,4.93034,2435.6,2435.0,4.10666]
[1728435082419,0.8245,2435.6,2435.2,4.10632]
[1728435083414,0.8245,2435.6,2435.3,4.10616]
[1728435083598,0.8245,2435.6,2435.3,0.821248]
[1728435083785,0.8245,2435.6,2435.0,4.91007]
[1728435083990,0.8245,2435.6,2435.3,4.10625]
[1728435084316,0.8245,2435.6,2435.0,4.10674]
[1728435084482,4.93035,2435.6,2435.0,4.10674]
[1728435084669,4.93035,2435.6,2435.1,4.10658]
[1728435085094,4.93035,2435.6,2435.0,4.10674]
[1728435085716,4.93035,2435.6,2435.1,4.1066]
[1728435086420,4.93035,2435.6,2435.1,4.70520564]
[1728435087203,0.8245,2435.6,2435.2,4.10641]
[1728435087789,0.8245,2435.6,2435.3,4.10617]
[1728435088019,0.8245,2435.6,2435.4,4.10608]
[1728435088319,0.8245,2435.6,2435.3,0.47050156]
[1728435090508,0.8245,2435.6,2435.2,8.21262]
[1728435090680,0.8245,2435.6,2435.3,4.10616]
[1728435092639,0.825,2435.9,2435.6,4.10565]
[1728435092921,13.136798,2436.3,2435.9,4.10522]
[1728435092922,0.825,2436.3,2435.9,4.10522]
[1728435093141,0.825,2436.3,2435.6,0.781]
[1728435093142,0.825,2436.3,2436.0,8.21002]
[1728435093429,0.825,2436.3,2436.0,4.925982]
[1728435093634,0.825,2436.3,2435.8,8.21061]
[1728435093797,0.825,2436.3,2435.7,4.10547]
[1728435093994,0.825,2436.3,2435.8,4.10541]
[1728435094720,4.92958,2436.3,2435.8,4.10541]
[1728435095305,0.825,2436.3,2435.8,4.10541]
[1728435095818,0.825,2436.3,2435.8,5.004618]
[1728435097176,0.825,2436.3,2435.9,4.10519]
[1728435097409,0.825,2436.3,2436.0,4.10508]
[1728435098692,0.825,2436.3,2435.8,5.004508]
[1728435099824,0.825,2436.3,2435.8,9.109828]
[1728435100030,0.825,2436.3,2435.8,9.109838]
[1728435100228,0.825,2436.3,2435.8,5.004508]
[1728435101300,0.825,2436.3,2435.9,0.5004508]
[1728435101544,7.10384,2436.8,2436.1,4.10488]
[1728435101545,7.10391,2436.7,2436.1,4.10488]
[1728435101732,3.78443297,2437.0,2436.4,4.10439]
[1728435101733,0.7788,2436.6,2436.4,4.10439]
[1728435101900,7.88790297,2437.0,2436.4,4.10431]
[1728435102101,7.88790297,2437.0,2435.9,4.6056608]
[1728435102102,0.7788,2436.7,2436.1,4.10492]
[1728435102327,4.88281,2436.7,2436.1,4.1049]
[1728435102510,4.88281,2436.7,2436.2,4.10465]
[1728435103331,4.88281,2436.7,2436.1,4.1049]
[1728435103530,4.10409,2436.6,2436.1,4.1049]
[1728435103902,4.88281,2436.7,2436.1,4.1049]
[1728435104107,8.98681,2436.7,2436.1,4.1049]
[1728435105135,4.8828,2436.7,2436.1,4.1049]
[1728435105656,4.10413,2436.6,2436.1,4.1049]
[1728435106018,4.8828,2436.7,2436.1,4.10482]
[1728435106249,4.8828,2436.7,2436.2,4.10475]
[1728435106436,0.7788,2436.7,2436.4,4.10441]
[1728435107551,0.7934,2437.0,2436.5,4.10422]
[1728435107753,0.7934,2437.0,2436.5,4.514642]
[1728435107958,0.7934,2437.0,2436.5,8.618792]
[1728435108125,0.7934,2437.0,2436.5,4.514572]
[1728435109152,0.7934,2437.0,2436.6,4.10398]
[1728435109351,0.7934,2437.0,2436.7,4.10387]
[1728435109551,0.7934,2437.0,2436.6,0.4514572]
[1728435109939,0.7934,2437.0,2436.6,4.5554772]
[1728435110620,0.7934,2437.0,2436.7,4.10381]
[1728435112359,0.7934,2437.3,2436.9,4.10353]
[1728435112522,0.7934,2437.6,2437.1,4.10309]
[1728435112722,4.10257,2437.5,2436.9,4.89172]
[1728435112964,4.10257,2437.5,2436.9,6.1697153]
[1728435113963,8.20526,2437.5,2436.9,6.1697153]
[1728435114264,0.8084,2437.2,2436.6,0.7681]
[1728435114566,0.8084,2437.2,2436.8,4.10362]
[1728435118463,0.8084,2437.2,2436.8,4.10362]
[1728435119292,0.8106,2437.4,2436.9,4.10356]
[1728435119942,4.10292,2437.3,2436.7,8.20758]
[1728435120137,4.10292,2437.3,2436.7,9.4835913]
[1728435120446,0.7811,2437.1,2436.5,4.10414]
[1728435121282,0.7811,2437.1,2436.7,4.1039]
[1728435121489,0.7811,2437.1,2436.5,4.10414]
[1728435121674,0.7811,2437.1,2436.5,4.1041]
[1728435121982,0.7811,2437.1,2436.6,4.59592]
[1728435122279,0.7811,2437.3,2436.7,4.10386]
[1728435123053,0.7811,2437.3,2436.9,4.10356]
[1728435125699,4.88401,2437.3,2436.7,4.1038]
[1728435125993,4.1035,2437.0,2436.4,4.91879]
[1728435127452,4.10375,2436.8,2436.3,4.10446]
[1728435127654,0.7784,2436.9,2436.4,4.10426]
[1728435127859,4.882,2436.9,2436.4,0.82087]
[1728435128082,0.7784,2436.9,2436.4,4.92527]
[1728435129080,0.7784,2436.9,2436.6,4.10395]
[1728435129284,0.7784,2437.2,2436.8,4.10369]
[1728435129457,0.7784,2437.2,2436.9,4.10347]
[1728435129653,0.7784,2437.2,2436.8,4.10369]
[1728435129858,0.7784,2437.2,2436.8,0.895828]
[1728435129859,4.8815,2437.2,2436.8,0.895828]
[1728435130084,0.7784,2437.2,2436.7,8.20778]
[1728435130968,0.7784,2437.2,2436.7,4.10389]
[1728435131262,8.2503,2437.4,2436.9,4.10352]
[1728435131494,8.2503,2437.4,2437.0,0.410352]
[1728435131661,8.2503,2437.4,2436.9,8.20697]
[1728435131858,8.2503,2437.4,2437.0,4.10339]
[1728435132063,0.8303,2437.4,2437.0,4.10339]
[1728435132572,0.8303,2437.4,2436.9,4.10345]
[1728435132790,0.8303,2437.4,2437.0,4.10338]
[1728435132987,0.8303,2437.4,2437.0,4.924063]
[1728435134154,0.8303,2437.4,2437.0,0.820683]
[1728435134416,0.8303,2437.4,2437.0,4.923983]
[1728435134698,0.7658,2437.7,2437.3,4.1029]
[1728435135408,4.86804,2437.7,2437.1,4.10312]
[1728435135698,4.10275,2437.4,2436.9,4.10344]
[1728435135899,0.7838,2437.3,2436.9,5.000984]
[1728435136458,0.7838,2437.3,2436.9,0.897544]
[1728435137331,0.7838,2437.3,2436.9,5.001074]
[1728435137819,0.7838,2437.3,2436.5,4.10421]
[1728435138003,4.1037,2436.9,2436.3,4.10443]
[1728435138318,0.7813,2437.0,2436.1,1.29022708]
[1728435138512,0.7813,2437.0,2436.5,4.10424]
[1728435138718,4.88483,2437.0,2436.3,8.20896]
[1728435139027,4.10362,2436.9,2436.4,0.820896]
[1728435139194,4.10362,2436.9,2436.3,4.10446]
[1728435139378,4.10375,2436.8,2436.3,4.10446]
[1728435139904,0.7846,2436.7,2436.2,4.10469]
[1728435141280,0.7846,2436.7,2436.1,4.56538708]
[1728435141281,0.7846,2436.7,2436.3,4.10457]
[1728435141479,7.88774297,2437.1,2436.3,0.86699571]
[1728435141765,0.7699,2437.0,2436.5,4.10409]
[1728435142062,4.10359,2436.9,2436.4,4.10441]
[1728435142572,0.7699,2436.8,2436.1,0.46052708]
[1728435142724,4.10407,2436.7,2436.1,0.46052708]
[1728435143124,4.10442,2436.4,2435.8,4.10533]
[1728435143452,4.10501,2436.1,2435.4,4.10599]
[1728435143651,0.8208,2435.9,2435.3,4.10618]
[1728435143875,0.8208,2435.9,2435.0,4.10674]
[1728435143876,0.8208,2435.8,2435.0,4.10674]
[1728435144174,0.8208,2435.6,2435.0,4.10674]
[1728435144475,0.8208,2435.6,2435.2,4.10642]
[1728435144661,0.8208,2435.6,2435.3,0.410642]
[1728435145529,0.8208,2435.6,2435.3,4.10624]
[1728435145723,0.8208,2435.6,2435.2,4.10642]
[1728435146033,0.8208,2435.6,2435.2,4.10632]
[1728435146336,0.8189,2436.0,2435.4,4.10596]
[1728435146673,0.8189,2436.0,2435.6,4.10573]
[1728435146969,0.8189,2436.0,2435.6,4.10566]
[1728435147127,0.7834,2436.4,2435.6,0.8149]
[1728435147326,4.1047,2436.3,2435.6,4.10573]
[1728435147527,4.1047,2436.3,2435.5,0.410596]
[1728435147528,7.88950297,2436.1,2435.5,0.410596]
[1728435147833,0.8311,2436.0,2435.5,0.410596]
[1728435148179,0.8311,2436.0,2435.5,4.516476]
[1728435148876,0.8311,2436.0,2435.7,4.10558]
[1728435149459,0.8311,2436.0,2435.6,4.10574]
[1728435149628,0.8311,2436.0,2435.6,4.9679756]
[1728435150078,0.8311,2436.0,2435.6,9.0736156]
[1728435150363,0.8311,2436.0,2435.6,8.21138]
[1728435150572,0.8311,2436.0,2435.6,4.10564]
[1728435152831,4.93624,2436.0,2435.4,4.10604]
[1728435153035,0.8311,2436.0,2435.3,4.10621]
[1728435153235,4.92098,2435.9,2435.3,4.10621]
[1728435154178,4.92098,2435.9,2435.0,4.10664]
[1728435154179,0.8156,2435.6,2435.0,4.10664]
[1728435154337,0.8156,2435.6,2435.2,4.10633]
[1728435154538,0.8156,2435.6,2435.3,4.516863]
[1728435155185,0.8156,2435.6,2435.3,0.410633]
[1728435156247,0.8156,2435.6,2435.0,4.10662]
[1728435156463,0.8156,2435.6,2435.1,4.10648]
[1728435156735,0.8156,2435.6,2435.2,4.10627]
[1728435157482,0.8156,2435.6,2435.3,4.10625]
[1728435157776,0.8156,2435.6,2435.1,4.10647]
[1728435158078,0.8156,2435.6,2435.1,8.21297]
[1728435158374,0.8156,2435.6,2435.1,9.034267]
[1728435159370,0.8156,2435.6,2435.1,4.927767]
[1728435160482,4.9214,2435.6,2435.1,0.821297]
[1728435160641,0.8156,2435.6,2435.1,0.821297]
[1728435160983,0.8156,2435.6,2435.1,9.034287]
[1728435161676,0.8156,2435.6,2435.1,4.927777]
[1728435162247,4.92138,2435.6,2435.1,0.821297]
[1728435163101,4.10572,2435.7,2434.9,4.10687]
[1728435163102,4.92373,2435.5,2434.9,4.10692]
[1728435163373,4.10613,2435.4,2434.9,4.10692]
[1728435163971,9.02981,2435.5,2434.9,4.10692]
[1728435164132,9.02981,2435.5,2434.9,5.005865]
[1728435164335,4.10613,2435.4,2434.9,5.005865]
[1728435164943,0.8177,2435.5,2434.9,0.898945]
[1728435165145,0.8177,2435.5,2435.1,4.1065]
[1728435166082,0.8177,2435.5,2434.9,8.21364]
[1728435166243,0.8177,2435.5,2434.9,4.10682]
[1728435166442,4.9237,2435.5,2434.9,4.10682]
[1728435167091,0.8177,2435.5,2435.0,4.10675]
[1728435167288,0.8177,2435.5,2435.2,4.10642]
[1728435168089,0.8177,2435.5,2435.1,4.10651]
[1728435168488,0.8177,2435.5,2435.0,4.10666]
[1728435168969,0.8177,2435.5,2435.1,4.10659]
[1728435169998,0.8177,2435.5,2435.0,4.10666]
[1728435170295,0.8177,2435.5,2435.1,4.10658]
[1728435170848,0.8177,2435.5,2435.0,4.928027]
[1728435171098,0.8177,2435.5,2435.0,4.10666]
[1728435171957,0.8177,2435.5,2435.1,4.10649]
[1728435172152,0.8177,2435.5,2435.0,4.10666]
[1728435172500,0.8177,2435.5,2435.0,4.10665]
[1728435172792,0.8177,2435.5,2435.0,8.21331]
[1728435172957,0.8177,2435.5,2435.1,0.821331]
[1728435173596,0.8177,2435.5,2435.0,4.10665]
[1728435173889,0.8177,2435.5,2435.0,8.21332]
[1728435174392,0.8177,2435.5,2435.0,4.10665]
[1728435175375,4.92373,2435.5,2434.9,4.10689]
[1728435175609,4.92373,2435.5,2434.9,5.005821]
[1728435181183,4.10613,2435.4,2434.9,0.898931]
[1728435181394,4.88101,2435.1,2434.6,4.10738]
[1728435181593,4.10679,2435.0,2434.5,3.0]
[1728435181826,4.10679,2435.0,2434.6,1.121534]
[1728435182511,0.7744,2435.1,2434.6,1.121534]
[1728435182723,0.7744,2435.1,2434.6,4.10729]
[1728435183009,4.881,2435.1,2434.6,4.10729]
[1728435183517,0.7744,2435.1,2434.6,4.10729]
[1728435184117,0.7744,2435.1,2434.6,8.21464]
[1728435184468,0.7744,2435.1,2434.6,4.10736]
[1728435184667,4.1062,2435.4,2434.6,4.10736]
[1728435184668,0.8048,2435.4,2434.8,4.10701]
[1728435184985,0.8048,2435.4,2435.0,4.10667]
[1728435185178,0.8048,2435.4,2435.1,4.1066]
[1728435186273,0.8048,2435.4,2435.1,4.10649]
[1728435186622,0.8048,2435.4,2435.2,4.927616]
[1728435186958,0.8048,2435.4,2435.2,8.21264]
[1728435187093,0.8048,2435.4,2435.2,4.1063]
[1728435187298,0.8048,2435.4,2435.3,4.10627]
[1728435188139,0.8294,2435.7,2435.4,4.10609]
[1728435189400,0.8294,2435.7,2435.4,4.106]
[1728435191015,0.8294,2435.7,2435.4,4.927223]
[1728435191231,4.93502,2435.7,2435.4,0.821233]
[1728435191426,4.93502,2435.7,2435.0,4.10667]
[1728435191427,4.93502,2435.7,2435.0,8.21332]
[1728435191626,0.8294,2435.7,2435.0,8.21332]
[1728435191802,4.10578,2435.6,2435.0,8.21332]
[1728435192007,4.10578,2435.6,2435.1,0.821332]
[1728435192247,4.10578,2435.6,2435.1,4.927932]
[1728435192646,0.8294,2435.7,2435.2,4.10643]
[1728435192948,4.935,2435.7,2435.2,4.10643]
[1728435193148,0.8294,2435.7,2435.1,0.821332]
[1728435193314,4.10519,2436.0,2434.7,2.12694333]
[1728435193315,3.8081,2435.9,2435.5,4.1059]
[1728435193511,7.91341,2435.9,2435.4,4.10595]
[1728435193718,4.91361,2435.8,2435.2,8.21267]
[1728435194133,4.10562,2435.7,2435.2,4.10632]
[1728435194339,4.10562,2435.7,2435.0,4.10668]
[1728435194562,7.89080297,2435.3,2434.7,4.517896]
[1728435194773,0.7964,2435.2,2434.7,4.517896]
[1728435195075,0.7964,2435.2,2434.7,8.625066]
[1728435195635,0.7964,2435.2,2434.7,4.517896]
[1728435195839,0.7964,2435.2,2435.0,4.10676]
[1728435196039,0.7964,2435.2,2434.8,0.4517896]
[1728435196752,0.7964,2435.2,2434.8,4.5588596]
[1728435197282,0.7964,2435.2,2434.8,0.4517896]
[1728435198742,0.7964,2435.2,2434.8,4.5588696]
[1728435198936,0.7964,2435.2,2434.8,0.4517896]
[1728435202124,0.7964,2435.2,2434.8,4.5588596]
[1728435204334,0.7964,2435.2,2434.8,0.4517896]
[1728435204533,5.85802884,2435.1,2434.5,4.10751]
[1728435204839,1.75131884,2434.9,2434.5,4.10751]
[1728435205229,0.787,2434.8,2434.2,1.71620733]
[1728435205426,0.8245,2434.5,2434.0,0.64357235]
[1728435205722,0.8245,2434.5,2433.9,1.75131884]
[1728435205924,0.8245,2434.5,2434.1,4.10818]
[1728435206101,4.93225,2434.5,2433.7,10.72906733]
[1728435206298,2.54301884,2434.3,2433.7,9.50612828]
[1728435206641,0.7917,2434.3,2433.7,1.28836828]
[1728435206822,0.7917,2434.3,2434.1,4.10824]
[1728435207537,0.773,2434.6,2434.5,4.10761]
[1728435207746,4.10668,2435.1,2434.5,4.10761]
[1728435207747,0.773,2434.9,2434.5,4.10761]
[1728435207938,0.773,2434.9,2434.7,4.10712]
[1728435208114,2.52431884,2434.9,2434.3,4.10788]
[1728435208527,0.773,2434.9,2434.4,4.10767]
[1728435208723,0.773,2434.9,2434.5,4.10761]
[1728435208940,0.773,2434.9,2434.6,4.10735]
[1728435209311,0.773,2434.9,2434.4,0.52625528]
[1728435209554,0.773,2434.9,2434.4,4.63401528]
[1728435209954,0.773,2434.9,2434.5,4.10759]
[1728435210380,0.773,2434.9,2434.6,4.10731]
[1728435210562,0.773,2434.9,2434.6,8.21465]
[1728435210735,0.773,2434.9,2434.6,4.10731]
[1728435211736,0.7904,2435.1,2434.9,4.10693]
[1728435212271,0.7904,2435.1,2434.7,4.10711]
[1728435212472,0.7904,2435.1,2434.8,4.10704]
[1728435212673,0.7904,2435.1,2434.7,4.10711]
[1728435212877,0.7904,2435.1,2434.9,4.10692]